Cogmind - Beta 12 @@@ ROGUE MODE // 2023.03.06 @ 15:05:24 Player: Delirus Result: Destroyed by B-86 Titan with Railgun Performance ------------- Evolutions (6) 3000 Regions Visited (17) 3400 Robots Destroyed (158) 790 Value Destroyed (7234) 7234 Prototype IDs (44) 880 Alien Tech Used (2) 400 Bonus (4479) 4479 TOTAL SCORE: 20183 Bonus ------- High Alert Combat Kills 1497 Follower Combat Kills 574 Entered Garrisons 600 Used RIF Installer 1500 Aligned with FarCom 300 Met Zhirov 300 Friendly Fire -292 Cogmind --------- Core Integrity 0/1150 Matter 280/300 Energy 598/600 System Corruption 0% Temperature Cool (0) Movement Core (50) Location -3/Proximity Caves Parts ------- > --- POWER (1) -------- (None) > --- PROPULSION (7) --- (None) > --- UTILITY (7) ------ Advanced Energy Well Advanced Hacking Suite > --- WEAPON (4) ------- (None) > --- INVENTORY (5) ---- Wheel Matter Compressor (226) Improved Terrain Scanner Improved Hardlight Generator Improved Proton Missile Launcher Peak State ------------ > --- POWER ------------ Angular Momentum Engine > --- PROPULSION ------- Carbon-fiber Leg Improved Titanium Leg Flexi-carbon Leg Flexi-carbon Leg Armored Wheel > --- UTILITY ---------- Improved Cooling System Huge Storage Unit Weapon Cycler Layered Medium Armor Plating Improved Shield Generator > --- WEAPON ----------- Improved Arc Projector Improved Arc Projector Improved Arc Projector Gauss Cannon > --- INVENTORY -------- Improved Deuterium Engine Improved Heat Sink Matter Compressor Seismic Detector Advanced Targeting Computer Matter Filter Improved Kinecellerator Hardened Heavy Armor Plating Improved Light Armor Plating Focal Shield Improved Shield Generator Relay Coupler [NC] Relay Coupler [NC] Long-range Tractor Beam Drone Bay Gauss Rifle XL Autogun Subcomponent Advanced Assault Cannon Magnetic Acceleration Cannon Heavy Flak Cannon Missile Launcher Missile Launcher Remote Datajack Powered Hammer [Rating: 73] Favorites ----------- Power Ion Engine Engine Ion Engine Power Core Nuclear Core Reactor Heavy Antimatter Reactor Propulsion Medium Treads Treads Medium Treads Leg Flexi-carbon Leg Wheel Compact Wheel Hover Unit Airjet Flight Unit Impulse Thruster Utility Huge Storage Unit Device Improved Cooling System Storage Huge Storage Unit Processor Targeting Computer Hackware Relay Coupler [NC] Protection Hardened Medium Armor Plating Weapon XL Autogun Subcomponent Energy Gun Advanced Beam Rifle Ballistic Gun XL Autogun Subcomponent Ballistic Cannon Advanced Assault Cannon Launcher Missile Launcher Special Weapon Remote Datajack Impact Weapon Heavy Mace Slashing Weapon Makeshift Sword Special Melee Weapon Improved Datajack Build | -11 -10 -10 -10 -9 -8 -8 -8 -8 -7 -6 -6 -5 -4 -4 -4 -4 -3 ------- Run | Jun Mat Min Exi Min Mat Gar Mat Gar Fac Fac Gar Fac Fac Upp Upp Zhi Pro Slots Evolved 12 | . . . . . 4 . . . 2 2 . 2 2 . . . . Power . | . . . . . . . . . . . . . . . . . . Propulsion 5 | . . . . . 1 . . . 1 1 . 1 1 . . . . Utility 5 | . . . . . 1 . . . 1 1 . 1 1 . . . . Weapon 2 | . . . . . 2 . . . . . . . . . . . . Parts Attached 154 | 4 12 . . . 15 5 26 10 13 29 14 9 2 4 1 10 . Power 11 | . 1 . . . . 1 2 . 3 1 1 . . . . 2 . Engine 8 | . 1 . . . . 1 1 . 2 1 1 . . . . 1 . Core 2 | . . . . . . . 1 . 1 . . . . . . . . Reactor 1 | . . . . . . . . . . . . . . . . 1 . Propulsion 34 | 2 2 . . . 6 . 8 2 4 5 1 2 1 . . 1 . Treads 22 | 1 2 . . . 4 . 8 2 4 1 . . . . . . . Leg 5 | . . . . . . . . . . 3 1 1 . . . . . Wheel 5 | 1 . . . . 2 . . . . 1 . 1 . . . . . Hover 1 | . . . . . . . . . . . . . . . . 1 . Flight 1 | . . . . . . . . . . . . . 1 . . . . Utility 48 | 1 2 . . . 2 1 8 3 2 10 7 3 . 2 1 6 . Device 27 | 1 . . . . 1 . 3 2 1 7 6 2 . 2 . 2 . Storage 3 | . 1 . . . . . . . . . . . . . . 2 . Processor 3 | . 1 . . . . . . . 1 . . . . . 1 . . Hackware 4 | . . . . . . . 2 . . 1 . . . . . 1 . Protection 11 | . . . . . 1 1 3 1 . 2 1 1 . . . 1 . Artifact . | . . . . . . . . . . . . . . . . . . Weapon 61 | 1 7 . . . 7 3 8 5 4 13 5 4 1 2 . 1 . Energy Gun 7 | . 1 . . . 2 . 1 . . . 3 . . . . . . Energy Cannon . | . . . . . . . . . . . . . . . . . . Ballistic Gun 29 | 1 6 . . . 5 2 5 4 2 4 . . . . . . . Ballistic Cannon 10 | . . . . . . . 1 . . 3 1 4 1 . . . . Launcher 7 | . . . . . . . . 1 1 4 1 . . . . . . Special Weapon 3 | . . . . . . . . . 1 2 . . . . . . . Impact Weapon 1 | . . . . . . 1 . . . . . . . . . . . Slashing Weapon 3 | . . . . . . . . . . . . . . 2 . 1 . Piercing Weapon . | . . . . . . . . . . . . . . . . . . Special Melee Weapon 1 | . . . . . . . 1 . . . . . . . . . . Unidentified Prototypes 7 | . . . . . . . 1 . . . . . . . . 6 . Parts Lost 33 | . 3 . . . . . 3 4 . 9 6 1 1 1 3 . 2 Power 1 | . 1 . . . . . . . . . . . . . . . . Propulsion 14 | . 1 . . . . . 1 2 . 5 2 . 1 1 . . 1 Utility 10 | . . . . . . . 2 1 . 1 3 . . . 3 . . Weapon 8 | . 1 . . . . . . 1 . 3 1 1 . . . . 1 Highest Loss Streak 5 | . 2 . . . . . 3 3 . 4 5 1 1 1 3 . 2 To Critical Strikes . | . . . . . . . . . . . . . . . . . . Average Slot Usage (%) 83 | . 94 100 100 100 97 72 78 98 99 95 93 3 7 9 10 13 19 Engine 8 | . 13 14 14 14 9 9 8 9 7 6 5 . . . . . . Treads 17 | . 13 14 14 14 18 18 23 27 29 18 . . . . . . . Leg 2 | . . . . . . . . . . 9 22 . . . . . . Wheel 5 | . 14 14 14 14 8 9 3 . . 3 5 . 4 . . . . Device 8 | . 5 . . . 5 9 8 8 14 13 15 . . 6 7 . . Storage 8 | . 14 14 14 14 9 9 9 9 7 6 5 . . . . 3 5 Processor 2 | . 8 14 14 14 9 . . . . . . . . . 2 . . Protection 5 | . . . . . 3 9 8 9 7 6 5 . . . . . . Energy Gun 2 | . 3 14 14 14 12 . . 1 . . 4 . . . . . . Ballistic Gun 17 | . 20 14 14 14 21 8 11 29 29 16 9 . . . . . . Ballistic Cannon 1 | . . . . . . . 3 1 . 6 9 1 3 . . . . Naked Turns 460 | . . . . . . . . . . . 26 277 29 30 49 49 . Heaviest Build 135 | 15 91 91 91 91 99 108 119 119 122 130 135 19 8 4 2 10 5 Greatest Support 126 | 20 16 16 16 16 65 16 73 78 98 126 12 28 28 7 3 8 8 Greatest Overweight (x) 11 | . 5 5 5 5 6 6 6 1 1 10 11 2 . 1 . 3 . Average Overweight (x) 3 | . 4 5 5 5 5 5 3 1 1 5 9 . . . . . . Largest Inventory Capacity 25 | 8 25 25 25 25 25 25 25 25 25 25 25 5 5 5 5 5 5 Average Capacity 22 | 8 24 25 25 25 25 25 25 25 25 25 24 5 5 5 5 5 5 Most Carried 25 | 6 25 25 25 25 25 25 25 25 25 25 25 5 5 5 5 5 5 Average Carried 21 | 6 18 24 24 25 24 24 24 24 24 24 24 4 4 4 5 4 5 Final Capacity 25 | 8 25 25 25 25 25 25 25 25 25 25 5 5 5 5 5 5 5 Final Carried 25 | 6 24 25 25 25 25 25 24 25 25 25 5 5 5 5 5 5 5 Class Distribution -------------------- 33% | Mutant 33% | Skirmisher 16% | Tank 7% | Scavenger-Skirmisher 4% | Scavenger-Mutant 3% | Commander-Skirmisher Dominant Class ---------------- Mutant | -10/Materials Mutant | -10/Mines Mutant | -10/Exiles Mutant | -9/Mines Skirmisher | -8/Materials Skirmisher | -8/Garrison Scavenger-Skirmisher | -8/Materials Skirmisher | -8/Garrison Tank | -7/Factory Tank | -6/Factory Scavenger-Mutant | -6/Garrison Mutant | -5/Factory Mutant | -4/Factory Mutant | -4/Upper Caves Mutant | -4/Upper Caves Mutant | -4/Zhirov Mutant | -3/Proximity Caves Resources | -11 -10 -10 -10 -9 -8 -8 -8 -8 -7 -6 -6 -5 -4 -4 -4 -4 -3 ----------- Run | Jun Mat Min Exi Min Mat Gar Mat Gar Fac Fac Gar Fac Fac Upp Upp Zhi Pro Matter Collected 6758 | 170 539 26 . . 383 1115 1228 831 501 948 304 165 . 120 62 366 . Remotely 410 | . . . . . . . . . . 410 . . . . . . . Salvage Created 6442 | 29 468 42 . . 518 1021 1387 901 717 657 279 . . 57 . 366 . Parts 334 | 3 37 5 . . 23 42 70 53 37 40 13 . . 4 . 7 . Haulers Intercepted 2 | . 1 . . . 1 . . . . . . . . . . . . Recyclers Shooed 1 | . . . . . . . 1 . . . . . . . . . . Parts Field Recycled . | . . . . . . . . . . . . . . . . . . Retrieved Matter . | . . . . . . . . . . . . . . . . . . Parts Self-Destructed 2 | . . . . . . . . . . . . . . . . 2 . Prevented . | . . . . . . . . . . . . . . . . . . Kills | -11 -10 -10 -10 -9 -8 -8 -8 -8 -7 -6 -6 -5 -4 -4 -4 -4 -3 ------- Run | Jun Mat Min Exi Min Mat Gar Mat Gar Fac Fac Gar Fac Fac Upp Upp Zhi Pro Combat Hostiles Destroyed 135 | . 12 3 . . 7 23 27 27 14 14 8 . . . . . . Melee 1 | . . . . . . . . . . . 1 . . . . . . Guns 108 | . 12 3 . . 7 23 20 20 14 9 . . . . . . . Cannons 15 | . . . . . . . 6 1 . 5 3 . . . . . . AOE 10 | . . . . . . . . 6 . . 4 . . . . . . Classes Destroyed 20 | 1 6 . . . 2 2 4 2 2 . . . . 1 . . . Worker 4 | . 1 . . . 1 . 2 . . . . . . . . . . Builder 1 | . . . . . . . . . 1 . . . . . . . . Tunneler 1 | 1 . . . . . . . . . . . . . . . . . Hauler 2 | . 1 . . . 1 . . . . . . . . . . . . Recycler 2 | . . . . . 1 . 1 . . . . . . . . . . Mechanic 1 | . . . . . . . . . 1 . . . . . . . . Operator 3 | . 1 . . . . . 1 . . 1 . . . . . . . Watcher 7 | . 3 . . . 1 . 1 . 1 1 . . . . . . . Swarmer 27 | . 6 3 . . . 4 3 7 1 . 3 . . . . . . Cutter 3 | . . . . . . . . 3 . . . . . . . . . Grunt 57 | . 6 . . . 6 14 12 11 4 . 4 . . . . . . Brawler 2 | . . . . . . . 1 . 1 . . . . . . . . Duelist 7 | . . . . . . 1 3 . 2 . 1 . . . . . . Protector 3 | . . . . . . . 2 . 1 . . . . . . . . Sentry 12 | . . . . . 2 1 2 1 1 5 . . . . . . . Specialist 4 | . . . . . . . 2 2 . . . . . . . . . Hunter 11 | . . . . . . 3 1 2 1 4 . . . . . . . Programmer 9 | . . . . . . . . 1 3 5 . . . . . . . Heavy 1 | . . . . . . . 1 . . . . . . . . . . Samaritan 1 | . . . . . . . . . . . . . . 1 . . . Thug 1 | . . . . . . . . . 1 . . . . . . . . Best Kill Streak 10 | 1 5 3 . . 4 6 9 10 6 3 3 . . . . . . Combat Bots Only 10 | . 5 3 . . 2 6 9 10 5 2 3 . . . . . . Max Kills in Single Turn 3 | 1 1 1 . . 1 2 2 3 2 1 3 . . 1 . . . Gunslinging 1 | . . . . . . . . 1 1 . . . . . . . . Exploded 3 | . . . . . . . . 3 . . 3 . . . . . . Melee 1 | . . . . . . . . . . . 1 . . . . . . Uniques/NPCs Destroyed . | . . . . . . . . . . . . . . . . . . Combat | -11 -10 -10 -10 -9 -8 -8 -8 -8 -7 -6 -6 -5 -4 -4 -4 -4 -3 -------- Run | Jun Mat Min Exi Min Mat Gar Mat Gar Fac Fac Gar Fac Fac Upp Upp Zhi Pro Damage Taken 9361 | . 439 84 . . 283 411 1409 923 558 1571 1637 461 576 148 612 . 249 Core 2181 | . 62 18 . . 33 55 58 41 5 118 446 191 277 108 555 . 214 Absorbed by Shields 975 | . . . . . . 21 . 9 52 519 374 . . . . . . Core Remaining (%) 74 | 100 . . . 68 . . . 66 99 . 33 80 . . . . . Volleys Fired 436 | 2 52 4 . . 24 72 56 67 31 79 35 8 6 . . . . Largest 4 | 2 2 2 . . 4 1 3 4 4 4 3 2 1 . . . . Hottest 195 | 40 88 88 . . 170 60 141 141 80 121 195 106 53 . . . . Shots Fired 1015 | 4 98 8 . . 88 72 101 234 109 227 58 10 6 . . . . Gun 864 | 4 98 8 . . 88 72 80 219 105 168 22 . . . . . . Cannon 134 | . . . . . . . 21 10 . 52 35 10 6 . . . . Launcher 10 | . . . . . . . . 5 3 1 1 . . . . . . Special 7 | . . . . . . . . . 1 6 . . . . . . . Kinetic 920 | 4 92 4 . . 59 72 98 211 105 220 39 10 6 . . . . Thermal 60 | . 6 4 . . 29 . 3 18 . . . . . . . . . Explosive 10 | . . . . . . . . 5 3 1 1 . . . . . . Electromagnetic 18 | . . . . . . . . . . . 18 . . . . . . Robot Hit Streak 27 | 4 10 5 . . 10 10 8 12 16 27 5 2 . . . . . Robot Miss Streak 9 | . 4 4 . . 4 9 6 4 2 4 4 1 . . . . . Penetration Max 1 | . . . . . . . . 1 . 1 . . . . . . . Secondary Targets 11 | . 2 . . . 2 . . 4 3 . . . . . . . . Max Gunslinging Chain 1 | . 1 . . . 1 . . 1 1 . . . . . . . . Shots Hit Robots 605 | 4 55 6 . . 57 46 69 96 71 147 35 4 . 1 . 14 . Core Hits 315 | 1 33 6 . . 31 42 47 46 39 46 18 1 . 1 . 4 . Critical Kills 1 | . . . . . 1 . . . . . . . . . . . . Critical Parts Destroyed . | . . . . . . . . . . . . . . . . . . Critical Strikes 6 | . . . . . 2 . 1 . . 2 1 . . . . . . Burn 1 | . . . . . 1 . . . . . . . . . . . . Destroy 1 | . . . . . 1 . . . . . . . . . . . . Blast 4 | . . . . . . . 1 . . 2 1 . . . . . . Melee Attacks 26 | . . . . . . 10 1 . . . . . . 1 . 14 . Impact 10 | . . . . . . 10 . . . . . . . . . . . Slashing 15 | . . . . . . . . . . . . . . 1 . 14 . Piercing . | . . . . . . . . . . . . . . . . . . Sneak Attacks 1 | . . . . . . . . . . . . . . 1 . . . Combat Hostiles . | . . . . . . . . . . . . . . . . . . Follow-up Attacks . | . . . . . . . . . . . . . . . . . . Damage Inflicted 17220 | 54 771 58 . . 974 2474 3046 2604 2083 2849 1053 122 9 74 9 1040 . Guns 12223 | 54 771 58 . . 974 2474 2389 1785 1521 2028 169 . . . . . . Cannons 2242 | . . . . . . . 631 155 . 766 571 119 . . . . . Explosions 1501 | . . . . . . . . 664 562 45 230 . . . . . . Melee 1114 | . . . . . . . . . . . . . . 74 . 1040 . Ramming 140 | . . . . . . . 26 . . 10 83 3 9 . 9 . . Kinetic 13633 | 54 670 23 . . 594 2474 3000 1780 1521 2794 604 119 . . . . . Thermal 740 | . 101 35 . . 380 . 20 160 . . 44 . . . . . . Explosive 1457 | . . . . . . . . 664 562 45 186 . . . . . . Electromagnetic 136 | . . . . . . . . . . . 136 . . . . . . Impact . | . . . . . . . . . . . . . . . . . . Slashing 1114 | . . . . . . . . . . . . . . 74 . 1040 . Piercing . | . . . . . . . . . . . . . . . . . . Highest Corruption 5 | . . . . . . . . . 1 5 5 2 . . . . . Average Corruption 3 | . . . . . . . . . 1 3 5 2 . . . . . Corruption Purged . | . . . . . . . . . . . . . . . . . . Corruption Blocked . | . . . . . . . . . . . . . . . . . . Effects 66 | . . . . . . . . . 10 29 27 . . . . . . Message Errors 20 | . . . . . . . . . 4 10 6 . . . . . . Matter Fused 17 | . . . . . . . . . 1 10 6 . . . . . . Heat Flow Errors 9 | . . . . . . . . . 2 1 6 . . . . . . Energy Discharges 7 | . . . . . . . . . 2 3 2 . . . . . . Parts Rejected 1 | . . . . . . . . . . . 1 . . . . . . Parts Fused 1 | . . . . . . . . . 1 . . . . . . . . Data Loss (minor) 5 | . . . . . . . . . . 3 2 . . . . . . Data Loss (major) 4 | . . . . . . . . . . . 4 . . . . . . Alerts 1 | . . . . . . . . . . 1 . . . . . . . Weapon Failures 1 | . . . . . . . . . . 1 . . . . . . . Overload Shots . | . . . . . . . . . . . . . . . . . . Overflow Damage 344 | . . . . . . . 48 9 . 8 82 . . . . 197 . Projectiles 65 | . . . . . . . 43 . . 4 18 . . . . . . Explosions 73 | . . . . . . . . 9 . . 64 . . . . . . Melee 206 | . . . . . . . 5 . . 4 . . . . . 197 . Knockbacks 24 | . . . . . . . 6 . . 7 11 . . . . . . Impact 1 | . . . . . . . 1 . . . . . . . . . . Kinetic 22 | . . . . . . . 4 . . 7 11 . . . . . . Secondary 1 | . . . . . . . 1 . . . . . . . . . . Self-Inflicted Damage 139 | . . . . . . . . . 46 . 84 1 4 . 4 . . Shots 2 | . . . . . . . . . 1 . 1 . . . . . . Rammed 23 | . . . . . . . 1 . . 2 11 3 3 . 3 . . Targets Rammed 23 | . . . . . . . 1 . . 2 11 3 3 . 3 . . Kicked . | . . . . . . . . . . . . . . . . . . Crushed . | . . . . . . . . . . . . . . . . . . Highest Temperature 409 | . 66 108 . . 381 284 205 409 219 252 210 6 3 . . . . Average Temperature 79 | . 19 55 . . 121 68 56 105 53 70 91 4 3 . . . . Received Heat Transfer 2381 | . 129 . . . 180 97 441 279 112 160 314 189 282 9 162 . 27 Effects 4 | . . . . . 3 . . 1 . . . . . . . . . Energy Bleed 2 | . . . . . 1 . . 1 . . . . . . . . . Short Circuit 1 | . . . . . 1 . . . . . . . . . . . . Damage (minor) 1 | . . . . . 1 . . . . . . . . . . . . Siege Activations . | . . . . . . . . . . . . . . . . . . Robots Corrupted . | . . . . . . . . . . . . . . . . . . Combat Hostiles . | . . . . . . . . . . . . . . . . . . Parts Fried 4 | . . . . . . . 3 . . . 1 . . . . . . Impact Corruptions 3 | . . . . . . . 2 . . 1 . . . . . . . Robots Melted . | . . . . . . . . . . . . . . . . . . Combat Hostiles . | . . . . . . . . . . . . . . . . . . Parts Melted 3 | . . . . . 1 . . . 2 . . . . . . . . Heat Transferred 1282 | . 130 40 . . 729 . 37 296 . . 50 . . . . . . Parts Sabotaged . | . . . . . . . . . . . . . . . . . . Parts Stolen . | . . . . . . . . . . . . . . . . . . Parts Stripped . | . . . . . . . . . . . . . . . . . . Power Chain Reactions 1 | . . . . . . . . . . . 1 . . . . . . Missiles Intercepted . | . . . . . . . . . . . . . . . . . . Alert | -11 -10 -10 -10 -9 -8 -8 -8 -8 -7 -6 -6 -5 -4 -4 -4 -4 -3 ------- Run | Jun Mat Min Exi Min Mat Gar Mat Gar Fac Fac Gar Fac Fac Upp Upp Zhi Pro Peak Influence 1928 | 5 210 70 . . 140 1053 994 1928 1118 556 430 223 101 . . . . Initial 1012 | . 3 . . . . . 512 420 1012 510 109 220 58 . . . . Average 531 | 3 67 21 . . 64 531 721 1116 983 283 256 149 61 . . . . Maximum Alert Level 5 | . 1 . . . . 3 3 5 4 2 2 1 . . . . . Low Security (%) 30 | 100 91 100 . 100 100 18 . . . 5 36 54 100 . . . . Level 1 17 | . 8 . . . . 9 . . . 87 50 45 . . . . . Level 2 15 | . . . . . . 37 50 21 . 7 12 . . . . . . Level 3 25 | . . . . . . 34 49 17 97 . . . . . . . . Level 4 8 | . . . . . . . . 46 2 . . . . . . . . Level 5 2 | . . . . . . . . 14 . . . . . . . . . High Security . | . . . . . . . . . . . . . . . . . . Max Security . | . . . . . . . . . . . . . . . . . . Squads Dispatched 19 | . 3 . . . . . 6 . 4 4 . . 2 . . . . Investigation 2 | . 1 . . . . . 1 . . . . . . . . . . Extermination 6 | . . . . . . . . . 3 3 . . . . . . . Reinforcement 8 | . 2 . . . . . 3 . . 1 . . 2 . . . . Assault 3 | . . . . . . . 2 . 1 . . . . . . . . Garrison . | . . . . . . . . . . . . . . . . . . Intercept . | . . . . . . . . . . . . . . . . . . Searches Triggered . | . . . . . . . . . . . . . . . . . . Construction Impeded 1 | . . . . . . . 1 . . . . . . . . . . Haulers Reinforced . | . . . . . . . . . . . . . . . . . . Active Scanning Responses . | . . . . . . . . . . . . . . . . . . Cargo Convoy Interrupts . | . . . . . . . . . . . . . . . . . . Stealth | -11 -10 -10 -10 -9 -8 -8 -8 -8 -7 -6 -6 -5 -4 -4 -4 -4 -3 --------- Run | Jun Mat Min Exi Min Mat Gar Mat Gar Fac Fac Gar Fac Fac Upp Upp Zhi Pro Distress Signals 8 | . 1 . . . 2 . 1 . . 1 . 3 . . . . . Communications Jammed 18 | . . . . . . . . . . 18 . . . . . . . Distress Signals 18 | . . . . . . . . . . 18 . . . . . . . Times Spotted 282 | . 23 3 . . 18 27 45 36 27 26 22 26 12 8 8 . 1 Peak Tracking Total 12 | . 3 3 . . 5 4 9 9 5 3 11 12 10 10 7 . 1 Tactical Retreats 27 | . 2 . . . . 2 3 3 . . 3 7 1 5 1 . . Traps | -11 -10 -10 -10 -9 -8 -8 -8 -8 -7 -6 -6 -5 -4 -4 -4 -4 -3 ------- Run | Jun Mat Min Exi Min Mat Gar Mat Gar Fac Fac Gar Fac Fac Upp Upp Zhi Pro Traps Triggered 23 | . 2 . . . . 7 1 5 3 1 2 2 . . . . . Indirectly . | . . . . . . . . . . . . . . . . . . Trap Hack Attempts . | . . . . . . . . . . . . . . . . . . Triggered . | . . . . . . . . . . . . . . . . . . Disarmed . | . . . . . . . . . . . . . . . . . . Reprogrammed . | . . . . . . . . . . . . . . . . . . Reused . | . . . . . . . . . . . . . . . . . . Traps Extracted . | . . . . . . . . . . . . . . . . . . Installed . | . . . . . . . . . . . . . . . . . . Triggered . | . . . . . . . . . . . . . . . . . . Machines | -11 -10 -10 -10 -9 -8 -8 -8 -8 -7 -6 -6 -5 -4 -4 -4 -4 -3 ---------- Run | Jun Mat Min Exi Min Mat Gar Mat Gar Fac Fac Gar Fac Fac Upp Upp Zhi Pro Machines Disabled 27 | . . . . . . 8 4 8 5 1 1 . . . . . . Max in Single Turn 1 | . . . . . . 1 1 1 1 1 1 . . . . . . Garrison Relay 7 | . . . . . . 4 . 2 . . 1 . . . . . . Machines Repaired . | . . . . . . . . . . . . . . . . . . Machines Sabotaged . | . . . . . . . . . . . . . . . . . . Overloaded Fab Kills . | . . . . . . . . . . . . . . . . . . Hacking | -11 -10 -10 -10 -9 -8 -8 -8 -8 -7 -6 -6 -5 -4 -4 -4 -4 -3 --------- Run | Jun Mat Min Exi Min Mat Gar Mat Gar Fac Fac Gar Fac Fac Upp Upp Zhi Pro Machines Accessed 44 | . 8 . 2 . 6 3 6 1 1 3 1 3 . 1 . 9 . Terminals 25 | . 7 . . . 4 3 5 1 . 2 1 2 . . . . . Fabricators . | . . . . . . . . . . . . . . . . . . Repair Stations . | . . . . . . . . . . . . . . . . . . Recycling Units 3 | . 1 . . . . . . . 1 . . 1 . . . . . Scanalyzers 1 | . . . . . 1 . . . . . . . . . . . . Garrison Access 3 | . . . . . 1 . 1 . . 1 . . . . . . . Total Hacks 127 | . 21 . 5 . 11 4 15 2 1 9 1 9 . 1 . 48 . Successful 83 | . 12 . 5 . 4 1 4 . . 3 . 5 . 1 . 48 . Failed 43 | . 8 . . . 7 3 11 2 1 6 1 4 . . . . . Catastrophic 16 | . 2 . . . 2 3 5 1 . 2 1 . . . . . . Database Lockouts 1 | . 1 . . . . . . . . . . . . . . . . Manual 43 | . 12 . 1 . 6 . 11 . 1 6 . 6 . . . . . Terminals 65 | . 20 . . . 9 4 14 2 . 8 1 7 . . . . . Fabricators . | . . . . . . . . . . . . . . . . . . Repair Stations . | . . . . . . . . . . . . . . . . . . Recycling Units 4 | . 1 . . . . . . . 1 . . 2 . . . . . Scanalyzers 1 | . . . . . 1 . . . . . . . . . . . . Garrison Access 3 | . . . . . 1 . 1 . . 1 . . . . . . . Terminal Hacks 73 | . 10 . 5 . 2 1 3 . . 1 . 2 . 1 . 48 . Record 40 | . . . 4 . . . . . . . . . . . . 36 . Part Schematic 5 | . 1 . . . . . . . . . . . . . . 4 . Robot Analysis 5 | . 1 . . . . . . . . . . . . . . 4 . Prototype ID Bank 7 | . 2 . . . 1 . . . . . . . . . . 4 . Open Door 2 | . . . . . . 1 . . . . . . . 1 . . . Branch Access Points 1 | . . . . . . . . . . 1 . . . . . . . Terminal Index 1 | . . . . . . . . . . . . 1 . . . . . Unreport Threat 3 | . . . . . . . 2 . . . . 1 . . . . . Locate Traps 1 | . 1 . . . . . . . . . . . . . . . . Dispatch Records 1 | . 1 . . . . . . . . . . . . . . . . Reinforcement Status 1 | . . . . . 1 . . . . . . . . . . . . Recall Reinforcements 1 | . 1 . . . . . . . . . . . . . . . . Hauler Manifests 1 | . . . . . . . 1 . . . . . . . . . . Zone Layout 3 | . 3 . . . . . . . . . . . . . . . . EX-Prototype ID Bank 1 | . . . 1 . . . . . . . . . . . . . . Fabricator Hacks . | . . . . . . . . . . . . . . . . . . Repair Station Hacks . | . . . . . . . . . . . . . . . . . . Recycling Unit Hacks 1 | . . . . . . . . . . . . 1 . . . . . Report Inventory 1 | . . . . . . . . . . . . 1 . . . . . Scanalyzer 1 | . . . . . 1 . . . . . . . . . . . . Insert Component 1 | . . . . . 1 . . . . . . . . . . . . Garrison Access Hacks 3 | . . . . . 1 . 1 . . 1 . . . . . . . Unlock Access 3 | . . . . . 1 . 1 . . 1 . . . . . . . Unauthorized Hacks 5 | . 2 . . . . . . . . 1 . 2 . . . . . Terminals 4 | . 1 . . . . . . . . 1 . 2 . . . . . Assimilate 1 | . . . . . . . . . . . . 1 . . . . . Botnet 3 | . 1 . . . . . . . . 1 . 1 . . . . . Fabricators . | . . . . . . . . . . . . . . . . . . Repair Stations . | . . . . . . . . . . . . . . . . . . Recycling Units 1 | . 1 . . . . . . . . . . . . . . . . Tunnel 1 | . 1 . . . . . . . . . . . . . . . . Scanalyzers . | . . . . . . . . . . . . . . . . . . Garrison Access . | . . . . . . . . . . . . . . . . . . Data Cores Recovered 1 | . . . . . . . . . 1 . . . . . . . . Used . | . . . . . . . . . . . . . . . . . . Hacking Detections 28 | . 7 . . . 5 2 6 1 1 2 1 3 . . . . . Full Trace Events 3 | . . . . . 1 . 1 1 . . . . . . . . . Feedback Events . | . . . . . . . . . . . . . . . . . . Feedback Blocked . | . . . . . . . . . . . . . . . . . . Robot Schematics Acquired . | . . . . . . . . . . . . . . . . . . Robots Built . | . . . . . . . . . . . . . . . . . . Authchips . | . . . . . . . . . . . . . . . . . . Time . | . . . . . . . . . . . . . . . . . . Total Robot Build Rating . | . . . . . . . . . . . . . . . . . . Part Schematics Acquired 5 | . 1 . . . . . . . . . . . . . . 4 . Parts Built . | . . . . . . . . . . . . . . . . . . Authchips . | . . . . . . . . . . . . . . . . . . Time . | . . . . . . . . . . . . . . . . . . Total Part Build Rating . | . . . . . . . . . . . . . . . . . . Parts Repaired . | . . . . . . . . . . . . . . . . . . Time . | . . . . . . . . . . . . . . . . . . Parts Recycled . | . . . . . . . . . . . . . . . . . . Recycled Matter . | . . . . . . . . . . . . . . . . . . Retrieved Matter . | . . . . . . . . . . . . . . . . . . Retrieved Components . | . . . . . . . . . . . . . . . . . . Parts Scanalyzed . | . . . . . . . . . . . . . . . . . . Part Schematics Acquired . | . . . . . . . . . . . . . . . . . . Parts Damaged . | . . . . . . . . . . . . . . . . . . Bothacking | -11 -10 -10 -10 -9 -8 -8 -8 -8 -7 -6 -6 -5 -4 -4 -4 -4 -3 ------------ Run | Jun Mat Min Exi Min Mat Gar Mat Gar Fac Fac Gar Fac Fac Upp Upp Zhi Pro Used RIF Installer 3 | . . . . . . 1 . 1 . . 1 . . . . . . Command Fork 1 | . . . . . . . . . . . 1 . . . . . . Signal Jammer 1 | . . . . . . . . 1 . . . . . . . . . Robots Hacked 1 | . . . . . . . . . . 1 . . . . . . . Non-combat 1 | . . . . . . . . . . 1 . . . . . . . Combat . | . . . . . . . . . . . . . . . . . . Robot Hacks Applied 2 | . . . . . . . . . . 2 . . . . . . . purge_threat 2 | . . . . . . . . . . 2 . . . . . . . Relay Couplers Released 26 | . . . . . . 15 . 8 . . 3 . . . . . . Machine Destruction 26 | . . . . . . 15 . 8 . . 3 . . . . . . Attached 1 | . . . . . . . . . . 1 . . . . . . . Fabnet Peak Effective % . | . . . . . . . . . . . . . . . . . . Robots Rewired 9 | . . . . . . 3 . 6 . . . . . . . . . Allies Hacked . | . . . . . . . . . . . . . . . . . . Hacks Repelled . | . . . . . . . . . . . . . . . . . . Allies | -11 -10 -10 -10 -9 -8 -8 -8 -8 -7 -6 -6 -5 -4 -4 -4 -4 -3 -------- Run | Jun Mat Min Exi Min Mat Gar Mat Gar Fac Fac Gar Fac Fac Upp Upp Zhi Pro Total Allies 19 | . . . . 3 . 5 . 6 3 . . 1 . . 1 . . Largest Group 5 | . . . . 3 3 3 1 5 3 . . . . . 1 . . Highest-Rated Group 184 | . . . . 40 40 78 31 184 93 . . . . . 165 . . Highest-Rated Ally 165 | . . . . 16 16 31 31 40 31 . . . . . 165 . . Total Orders 2 | . . . . . . 1 . . . . . 1 . . . . . STAY 1 | . . . . . . 1 . . . . . . . . . . . EXPLORE 1 | . . . . . . . . . . . . 1 . . . . . Ally Attacks 143 | . . . . . 22 29 20 24 48 . . . . . . . . Total Damage 2048 | . . . . . 217 334 251 728 518 . . . . . . . . Kills 23 | . . . . . 1 3 2 12 5 . . . . . . . . Allies Corrupted 1 | . . . . . . . . 1 . . . . . . . . . Allies Melted . | . . . . . . . . . . . . . . . . . . Intel | -11 -10 -10 -10 -9 -8 -8 -8 -8 -7 -6 -6 -5 -4 -4 -4 -4 -3 ------- Run | Jun Mat Min Exi Min Mat Gar Mat Gar Fac Fac Gar Fac Fac Upp Upp Zhi Pro Robot Analysis Total 5 | . 1 . . . . . . . . . . . . . . 4 . Derelict Logs Recovered . | . . . . . . . . . . . . . . . . . . Drone Launches 1 | . . . . . . . . . . . . 1 . . . . . Drone Recoveries 1 | . . . . . . . . . . . . 1 . . . . . Exploration | -11 -10 -10 -10 -9 -8 -8 -8 -8 -7 -6 -6 -5 -4 -4 -4 -4 -3 ------------- Run | Jun Mat Min Exi Min Mat Gar Mat Gar Fac Fac Gar Fac Fac Upp Upp Zhi Pro Turns Passed 15655 | 13 1725 89 577 98 1257 1943 1343 2330 1977 1678 1075 521 231 303 263 201 31 Spaces Moved 8101 | 1 877 44 329 57 593 863 525 841 780 643 403 613 259 475 506 239 53 Core 1649 | . . . . . . . . . . . 39 523 57 392 506 125 7 Treads 2204 | 1 . . . . 12 . 258 841 780 312 . . . . . . . Legs 52 | . . . . . . . . . . 1 . 51 . . . . . Wheels 3914 | . 877 44 329 57 581 863 267 . . 330 364 39 163 . . . . Hover 160 | . . . . . . . . . . . . . . . . 114 46 Flight 122 | . . . . . . . . . . . . . 39 83 . . . Fastest Speed 40 | 160 100 175 175 175 175 175 190 235 235 157 50 50 40 40 50 50 50 Average Speed 166 | 160 167 175 175 175 182 189 217 238 235 209 224 66 79 59 50 57 58 Slowest Speed 470 | 160 175 175 175 175 235 190 325 246 236 470 255 150 100 100 50 200 60 Overloaded Moves . | . . . . . . . . . . . . . . . . . . Propulsion Burnouts . | . . . . . . . . . . . . . . . . . . Robots Hopped . | . . . . . . . . . . . . . . . . . . Cave-ins Triggered . | . . . . . . . . . . . . . . . . . . Teleports 1 | . . . . . . . . . . . . . . . . 1 . Exploration Rate (%) 41 | 2 93 11 62 11 35 86 57 78 25 14 39 13 8 70 71 62 11 Regions Visited 17 Branch Regions 7 Pre-discovered Areas 5 | . 1 . 1 . . . . . . . . . . . . 3 . Known Exits Taken 4 | . . . . . 1 . 1 . 1 1 . . . . . . . Unknown Exits Taken 10 | 1 1 1 1 1 . . . . . . . 1 1 1 1 1 . Scrap Searched 5 | . . . . . . . . . . . . . . 3 2 . . Spaces Dug 32 | . . . . . . 5 2 18 . . . 3 4 . . . . Terrain Destroyed 135 | . . . . . . 5 38 32 12 19 20 5 4 . . . . Melee 5 | . . . . . . 5 . . . . . . . . . . . Projectile 64 | . . . . . . . 38 7 . 9 1 5 4 . . . . AOE 65 | . . . . . . . . 25 12 9 19 . . . . . . Terrain Rammed . | . . . . . . . . . . . . . . . . . . Walls Destroyed . | . . . . . . . . . . . . . . . . . . Machines Disabled . | . . . . . . . . . . . . . . . . . . Actions | -11 -10 -10 -10 -9 -8 -8 -8 -8 -7 -6 -6 -5 -4 -4 -4 -4 -3 --------- Run | Jun Mat Min Exi Min Mat Gar Mat Gar Fac Fac Gar Fac Fac Upp Upp Zhi Pro Total 9792 | 6 1037 48 335 56 726 1161 700 1114 909 859 503 715 276 496 514 284 53 Wait 565 | . 57 . . . 40 90 37 109 49 82 23 46 4 10 5 13 . Move 8085 | . 876 43 328 56 593 861 525 839 779 643 402 612 258 474 505 238 53 Hop . | . . . . . . . . . . . . . . . . . . Pick Up 141 | . 31 1 2 . 27 8 22 13 17 14 2 . 1 2 . 1 . Fast Attach 41 | 1 3 . . . 2 1 6 . 1 2 5 4 1 3 1 11 . Attach 47 | . 5 . . . 5 2 7 5 1 10 4 5 1 1 . 1 . Detach 14 | . . . . . . 2 2 . . 1 1 5 1 2 . . . Swap 68 | 3 4 . . . 8 2 13 5 11 17 5 . . . . . . Drop 134 | . 9 . 5 . 27 9 30 9 20 7 6 2 1 3 . 6 . Fire 436 | 2 52 4 . . 24 72 56 67 31 79 35 8 6 . . . . Melee 26 | . . . . . . 10 1 . . . . . . 1 . 14 . Ram 20 | . . . . . . . . . . . 11 3 3 . 3 . . Kick . | . . . . . . . . . . . . . . . . . . Crush 3 | . . . . . . . 1 . . 2 . . . . . . . Escape Stasis 97 | . . . . . . 47 . 11 . 2 7 30 . . . . . Rewire 115 | . . . . . . 57 . 56 . . 2 . . . . . . Trap . | . . . . . . . . . . . . . . . . . . Miscellaneous . | . . . . . . . . . . . . . . . . . . Route ------- -11/Junkyard -10/Materials (discovered 5 exits: [*Mat x3] / [*Min x2]) -10/Mines -10/Exiles -9/Mines -8/Materials (discovered 2 exits: *Fac / Gar) -8/Garrison (discovered 4 exits: *Mat x4) -8/Materials (discovered 2 exits: *Fac / Gar) -8/Garrison (discovered 4 exits: *Fac x3 / [*Mat]) -7/Factory -6/Factory (discovered 3 exits: *Low x2 / Gar) -6/Garrison -5/Factory -4/Factory -4/Upper Caves -4/Upper Caves -4/Zhirov -3/Proximity Caves History --------- Turn | Location | Event 14 | -11/Junkyard | Discovered new exit (range 0) 14 | -11/Junkyard | Entered Materials 25 | -10/Materials | Discovered new exit (range 8) 203 | -10/Materials | Discovered new exit (range 10) 316 | -10/Materials | Build established: Mutant 582 | -10/Materials | Discovered new exit (range 7) 823 | -10/Materials | Discovered new exit (range 16) 868 | -10/Materials | Central database locked down 1200 | -10/Materials | Discovered new exit (range 9) 1739 | -10/Materials | Entered Mines 1759 | -10/Mines | Deemed a non-threat by the Exiles lab entrance 1759 | -10/Mines | Discovered new exit (range 5) 1828 | -10/Mines | Entered Exiles 1872 | -10/Exiles | Met 8R-AWN 1900 | -10/Exiles | Met EX-HEX 1947 | -10/Exiles | Met EX-BIN 1968 | -10/Exiles | Met EX-DEC 1982 | -10/Exiles | Learned location of Zion (-6) 2162 | -10/Exiles | Aligned with FarCom system 2164 | -10/Exiles | Given EX-Vault access code 2206 | -10/Exiles | Opened EX-Vault 2227 | -10/Exiles | Found XL Autogun Array 2267 | -10/Exiles | Warned to stay clear of 0b10 Research branches 2387 | -10/Exiles | Discovered new exit (range 10) 2405 | -10/Exiles | Left Exiles lab with XL Autogun Array 2405 | -10/Exiles | Entered Mines 2407 | -9/Mines | Assisted by bots powering up and referring to "LRC-V3" 2412 | -9/Mines | Discovered new exit (range 9) 2503 | -9/Mines | Entered Materials 2503 | -8/Materials | Accompanied by 3 allies 2503 | -8/Materials | Evolved 4 slots: Propulsion x1, Utility x1, Weapon x2 2819 | -8/Materials | Build established: Skirmisher 3711 | -8/Materials | Discovered new exit (range 16) 3760 | -8/Materials | Identified exit to Garrison 3760 | -8/Materials | Entered Garrison 3950 | -8/Garrison | Triggered checkpoint 4115 | -8/Garrison | Garrison Relay disabled 4252 | -8/Garrison | Triggered checkpoint 4252 | -8/Garrison | Triggered checkpoint 4268 | -8/Garrison | Triggered checkpoint 4396 | -8/Garrison | Discovered new exit (range 10) 4424 | -8/Garrison | Triggered checkpoint 4438 | -8/Garrison | Discovered new exit (range 6) 4648 | -8/Garrison | Triggered checkpoint 4924 | -8/Garrison | Discovered new exit (range 10) 5028 | -8/Garrison | Triggered checkpoint 5055 | -8/Garrison | Garrison Relay disabled 5232 | -8/Garrison | Discovered new exit (range 9) 5294 | -8/Garrison | Triggered checkpoint 5334 | -8/Garrison | Installed Relay Interface Framework 5381 | -8/Garrison | Garrison Relay disabled 5635 | -8/Garrison | Rescued a captive Derelict 5636 | -8/Garrison | Rescued a captive Derelict 5703 | -8/Garrison | Entered Materials 5703 | -8/Materials | Accompanied by 1 ally 6347 | -8/Materials | Discovered new exit (range 11) 6503 | -8/Materials | First assault squad dispatched 6627 | -8/Materials | Lost 3 parts (1n2u) 6642 | -8/Materials | Destroyed 9 combat bots 6677 | -8/Materials | Build established: Scavenger-Skirmisher 7046 | -8/Materials | Identified exit to Garrison 7046 | -8/Materials | Entered Garrison 7150 | -8/Garrison | Triggered checkpoint 7169 | -8/Garrison | Expanded RIF knowledge: Signal Jamming 7201 | -8/Garrison | Garrison Relay disabled 7372 | -8/Garrison | Triggered checkpoint 7524 | -8/Garrison | Lost 3 parts (1n1u1w) 7572 | -8/Garrison | Destroyed 10 combat bots 7647 | -8/Garrison | Discovered new exit (range 10) 7725 | -8/Garrison | Triggered checkpoint 7766 | -8/Garrison | Garrison Relay disabled 7799 | -8/Garrison | Build established: Skirmisher 7842 | -8/Garrison | Triggered checkpoint 7877 | -8/Garrison | Discovered new exit (range 5) 8454 | -8/Garrison | Discovered new exit (range 10) 8682 | -8/Garrison | Triggered checkpoint 8704 | -8/Garrison | Triggered checkpoint 8832 | -8/Garrison | Build established: Commander-Skirmisher 8920 | -8/Garrison | Discovered new exit (range 14) 9126 | -8/Garrison | Triggered checkpoint 9376 | -8/Garrison | Entered Factory 9376 | -7/Factory | Evolved 2 slots: Propulsion x1, Utility x1 9700 | -7/Factory | Build established: Tank 10225 | -7/Factory | Allied Derelicts emerged from ambush trap array 10543 | -7/Factory | Discovered new exit (range 10) 10976 | -7/Factory | First assault squad dispatched 11174 | -7/Factory | Identified exit to Factory 11353 | -7/Factory | Entered another Factory area 11353 | -6/Factory | Evolved 2 slots: Propulsion x1, Utility x1 11637 | -6/Factory | Identified exit to Lower Caves 11781 | -6/Factory | Lost 3 parts (1u2w) 12141 | -6/Factory | Lost 4 parts (3n1w) 12917 | -6/Factory | Build established: Mutant 13031 | -6/Factory | Identified exit to Garrison 13031 | -6/Factory | Entered Garrison 13144 | -6/Garrison | Triggered checkpoint 13309 | -6/Garrison | Expanded RIF knowledge: Command Fork 13484 | -6/Garrison | Build established: Scavenger-Mutant 13691 | -6/Garrison | Garrison Relay disabled 14021 | -6/Garrison | Lost 5 parts (2n2u1w) 14057 | -6/Garrison | Spotted B-75 Beast 14072 | -6/Garrison | Triggered checkpoint 14080 | -6/Garrison | Released all parts (10) 14093 | -6/Garrison | Core integrity fell below 50% 14102 | -6/Garrison | Discovered new exit (range 8) 14106 | -6/Garrison | Entered Factory 14106 | -5/Factory | Evolved 2 slots: Propulsion x1, Utility x1 14262 | -5/Factory | Build established: Mutant 14623 | -5/Factory | Discovered new exit (range 4) 14627 | -5/Factory | Entered another Factory area 14627 | -4/Factory | Evolved 2 slots: Propulsion x1, Utility x1 14850 | -4/Factory | Discovered new exit (range 16) 14858 | -4/Factory | Entered Upper Caves 14860 | -4/Upper Caves | Attracted the attention of an 0b10 checkpoint 14883 | -4/Upper Caves | Attracted the attention of an 0b10 outpost 15154 | -4/Upper Caves | Discovered new exit (range 7) 15161 | -4/Upper Caves | Entered another Upper Caves area 15345 | -4/Upper Caves | Attracted the attention of an 0b10 checkpoint 15352 | -4/Upper Caves | Core integrity fell below 50% 15406 | -4/Upper Caves | Lost 3 parts (3u) 15419 | -4/Upper Caves | Discovered new exit (range 13) 15423 | -4/Upper Caves | Core integrity fell below 20% 15424 | -4/Upper Caves | Entered Zhirov 15424 | -4/Zhirov | Discovered new exit (range 3) 15434 | -4/Zhirov | Met Zhirov 15443 | -4/Zhirov | Learned location of Quarantine (-3) 15443 | -4/Zhirov | Learned location of Testing (-2) 15443 | -4/Zhirov | Learned location of Command (-1) 15453 | -4/Zhirov | Zhirov requested help retrieving the SGEMP Prototype 15570 | -4/Zhirov | Found Alien Artifact 15570 | -4/Zhirov | Identified Integrated Reactor 15570 | -4/Zhirov | Installed Integrated Reactor, increased core energy generation (+10) 15578 | -4/Zhirov | Found Alien Artifact 15578 | -4/Zhirov | Identified Transdimensional Reconstructor 15578 | -4/Zhirov | Warped through subspace 15625 | -4/Zhirov | Entered Proximity Caves 15625 | -3/Proximity Caves | Spotted B-86 Titan 15656 | -3/Proximity Caves | Destroyed by B-86 Titan with Railgun Last Messages --------------- 15560_ Dropped Adv. Cooling System. 15561_ Dynamic Insulation System fries itself beyond repair. 15568_ Zhirov uses his terminal. 15570_ Acquired Alien Artifact. 15570_ Identified Integrated Reactor. 15570_ Integrated Reactor installed, core energy generation increased (+10). 15578_ Acquired Alien Artifact. 15578_ Identified Transdimensional Reconstructor. 15578_ Warped through subspace. [Achievement: Subspace Traveler] 15590_ Zhirov uses his terminal. LOCATION=UNKNOWN GOAL=ESCAPE 15647_ Penetrated by Slug. 15647_ Mak. Sword destroyed. 15653_ Airjet destroyed. 15653_ Penetrated by Slug. 15653_ Slug penetrates Wall. 15656_ Penetrated by Slug. [Achievement: Back For More] Map ----- +----------------------------------------------------+ | ?????????????????????????????????????????????????? | | ?????????????????????????????????????????????????? | | ?????????????????????????????????????????????????? | | ???????????????????????????########??????????????? | | ??????????????????????????## #??????????????? | | ??????????????????#####???# #???????????????? | | ??????????#########"# ##?## #???????????????? | | ?????????## #" ### ## ##???????????????? | | ?????????# #???#????????????????? | | ?????????# #????????????????????? | | ?????????# #?????##?????????????? | | ?????????# #???## ##????????????? | | ?????????####### ##### ####?????????? | | ???????????????# ### #?????????? | | ???????????????# #?????????? | | ???????????????## #?????????? | | ????????????????## #### ### #?????????? | | ?????????????????# #### #????#?????????? | | ?????????????????## ### ####????#??????? | | ??????????????????### ### ### #?????? | | ????????????????????####?### #????? | | ??????????????????????????### ????? | | ??????????????????????????#"# BB ????? | | ???????????????????????????# BB ????? | | ???????????????????????####;% ????? | | ??????????????????????## @ #?????? | | ??????????????????????# ##?????? | | ?????????????????# #??????? | | ?????????????? ##### #??????? | | ????????????? ????# #??????? | | ????????????? ;# ?????# ### ##??????? | | ?????????????# ####????? ##???#???????? | | ?????????????# ?????????? ###????????????? | | ????????????? ??????????? ##??????????????? | | ????????????? ???????????? #???????????????? | | ?????????????? ?????????????######???????????????? | | ?????????????????????????????????????????????????? | | ?????????????????????????????????????????????????? | | ?????????????????????????????????????????????????? | | ?????????????????????????????????????????????????? | | ?????????????????????????????????????????????????? | | ?????????????????????????????????????????????????? | | ?????????????????????????????????????????????????? | | ?????????????????????????????????????????????????? | | ?????????????????????????????????????????????????? | | ?????????????????????????????????????????????????? | | ?????????????????????????????????????????????????? | | ?????????????????????????????????????????????????? | | ?????????????????????????????????????????????????? | | ?????????????????????????????????????????????????? | +----------------------------------------------------+ Best States ------------- Heat Dissipation 78 Energy Generation 18 Energy Capacity 950 Matter Stores 300 Matter Capacity 300 Sight Range 16 Terrain Scan Density 10 Armor Coverage 600 Weapon Cycling 15 Phase Shifting 5 Evasion (%) 62 Targeting Accuracy 5 Recoil Reduction 5 Matter Filtering 30 Kinecelleration 40 Offensive Hacking 20 Relay Coupler Types 1 Relay Coupler Value 29 Item Schematics ----------------- Cargo Storage Unit | -10/Materials | Hacked Assault Drone Bay | -4/Zhirov | Free Exp. Heat Sink | -4/Zhirov | Free Exp. Optical Array | -4/Zhirov | Free Imp. Arc Thrower | -4/Zhirov | Free Robot Schematics ------------------ None Fabricated ------------ Nothing Alien Tech Used ----------------- Integrated Reactor Transdimensional Reconstructor Achievements -------------- Back For More Infiltrator Subspace Traveler The Science Guy Challenges ------------ None Game ------ Seed ZhirovFireCleaver Manual? 0 Play Time 02:50:08 Cumulative 60.2 hours Start 2023.03.06 @ 08:16:09 End 2023.03.06 @ 15:05:24 Sessions 1 Manual Loads 0 Difficulty Rogue Special Mode None Game No. 50 Rogue 50 Adventurer 0 Explorer 0 Win Type - Total 0 Types 0/0/0/0/0/0/0/0/0 Lore% 34 Gallery% 43 Achievement% 39 Wizard Run 0 Options --------- ASCII 0 Keyboard 0 Movement Numpad Keybinds 0 Fullscreen 1 Font 12/Smallcaps Map View 83x54 Tactical HUD 1 Map Filters NONE Filters NONE Steam 1 RUN: 07146dc0-b525-40e1-90fd-faa9033ab8c4